fUSD/lending_fUSD_20260612
["ID","MTS","AMOUNT","RATE_DAILY","PERIOD"]
[424885309,1781232657000,-500.0,0.00034999,30]
[424885320,1781232657000,-500.0,0.00034999,30]
[424885311,1781232657000,-152.0,0.00034999,30]
[424885316,1781232657000,-500.0,0.00034999,30]
[424885313,1781232657000,-500.0,0.00034999,30]
[424885315,1781232657000,-151.0,0.00034999,30]
[424885314,1781232657000,-500.0,0.00034999,30]
[424885317,1781232657000,-152.0,0.00034999,30]
[424885319,1781232657000,-500.0,0.00034999,30]
[424885312,1781232657000,-151.0,0.00034999,30]
[424885324,1781232657000,-151.0,0.00034999,30]
[424885333,1781232657000,-500.0,0.00034999,30]
[424885323,1781232657000,-152.0,0.00034999,30]
[424885332,1781232657000,-151.0,0.00034999,30]
[424885327,1781232657000,-151.0,0.00034999,30]
[424885334,1781232657000,-151.0,0.00034999,30]
[424885335,1781232657000,-500.0,0.00034999,30]
[424885328,1781232657000,-500.0,0.00034999,30]
[424885325,1781232657000,-500.0,0.00034999,30]
[424885326,1781232657000,-500.0,0.00034999,30]
[424885362,1781232765000,-500.0,0.00013698,2]
[424885366,1781232819000,-500.0,0.00013698,2]
[424885368,1781232837000,-500.0,0.00013698,2]
[424885371,1781232891000,-157.14213509,0.000103,2]
[424885372,1781232910000,-1790.14492676,0.000103,2]
[424885373,1781232929000,-1790.14492676,0.000103,2]
[424885375,1781232949000,-227.576024,0.000103,2]
[424885376,1781232967000,-227.576024,0.000103,2]
[424885378,1781232987000,-156.0,0.000101,2]
[424885379,1781233007000,-107.17316321,0.000101,2]
[424885380,1781233060000,213.735553,0.00022871,120]
[424885384,1781233236000,-1425.08,0.0001,2]
[424885385,1781233257000,-1425.08,0.0001,2]
[424885386,1781233277000,-1263.67,0.0001,2]
[424885387,1781233298000,-270.75412682,0.0001,2]
[424885389,1781233350000,-500.0,0.0001,2]
[424885390,1781233403000,-268.78860411,0.0001,2]
[424885391,1781233458000,-1008.14811749,0.000103,2]
[424885398,1781233511000,-250.0,0.00011,2]
[424885401,1781233536000,500.0,0.00021,30]
[424885403,1781233564000,503.295,0.00021,30]
[424885402,1781233564000,-377.31691647,0.000121,2]
[424885404,1781233618000,-166.66,0.0001213,2]
[424885471,1781233845000,-166.66,0.00012386,2]
[424885561,1781233846000,-150.0,0.00013598,2]
[424885565,1781233846000,-353.13951513,0.00013599,2]
[424885505,1781233846000,-231.67,0.00012628,2]
[424885507,1781233846000,-164.66,0.00012628,2]
[424885520,1781233846000,-162.23743336,0.00012899,2]
[424885509,1781233846000,-166.66,0.00012641,2]
[424885526,1781233846000,-166.66,0.00013407,2]
[424885522,1781233846000,-1135.92,0.00013027,2]
[424885524,1781233846000,-166.66,0.00013152,2]
[424885518,1781233846000,-188.84351474,0.00012898,2]
[424885516,1781233846000,-166.66,0.00012897,2]
[424885529,1781233846000,-300.0,0.00013487,2]
[424885514,1781233846000,-166.55,0.0001269,2]
[424885531,1781233846000,-225.55820032,0.00013488,2]
[424885533,1781233846000,-257.55563188,0.00013488,2]
[424885535,1781233846000,-150.0,0.00013488,2]
[424885511,1781233846000,-785.45,0.0001269,2]
[424885539,1781233846000,-150.0,0.00013488,2]
[424885563,1781233846000,-522.74708487,0.00013599,2]
[424885537,1781233846000,-150.0,0.00013488,2]
[424885559,1781233846000,-150.0,0.00013567,2]
[424885573,1781233846000,-446.98332092,0.00013599,2]
[424885571,1781233846000,-707.03110338,0.00013599,2]
[424885567,1781233846000,-2000.0,0.00013599,2]
[424885557,1781233846000,-150.0,0.00013527,2]
[424885569,1781233846000,-2500.0,0.00013599,2]
[424885551,1781233846000,-150.0,0.00013488,2]
[424885549,1781233846000,-150.0,0.00013488,2]
[424885547,1781233846000,-150.0,0.00013488,2]
[424885545,1781233846000,-80.32886917,0.00013488,2]
[424885553,1781233846000,-121.39735585,0.00013488,2]
[424885541,1781233846000,-69.67113083,0.00013488,2]
[424885555,1781233846000,-28.60264415,0.00013488,2]
[424885667,1781233847000,-728.27,0.00013698,2]
[424885681,1781233847000,-761.22,0.00013698,2]
[424885663,1781233847000,-728.27,0.00013698,2]
[424885670,1781233847000,-728.27,0.00013698,2]
[424885672,1781233847000,-728.27,0.00013698,2]
[424885674,1781233847000,-728.27,0.00013698,2]
[424885683,1781233847000,-761.22,0.00013698,2]
[424885689,1781233847000,-761.22,0.00013698,2]
[424885676,1781233847000,-728.27,0.00013698,2]
[424885684,1781233847000,-761.22,0.00013698,2]
[424885687,1781233847000,-761.22,0.00013698,2]
[424885685,1781233847000,-761.22,0.00013698,2]
[424885688,1781233847000,-761.22,0.00013698,2]
[424885665,1781233847000,-728.27,0.00013698,2]
[424885679,1781233847000,-728.27,0.00013698,2]
[424885660,1781233847000,-728.27,0.00013698,2]
[424885630,1781233847000,-700.0,0.000136,4]
[424885646,1781233847000,-150.0,0.00013654,2]
[424885690,1781233847000,-761.22,0.00013698,2]
[424885635,1781233847000,-150.0,0.00013606,2]
[424885632,1781233847000,-200.0,0.000136,4]
[424885623,1781233847000,-832.7182337,0.000136,2]
[424885626,1781233847000,-10476.53150573,0.000136,2]
[424885628,1781233847000,-7816.39728562,0.000136,2]
[424885637,1781233847000,-150.0,0.00013613,2]
[424885639,1781233847000,-150.0,0.00013638,2]
[424885650,1781233847000,-173.49935523,0.00013689,2]
[424885652,1781233847000,-642.99392656,0.00013698,2]
[424885654,1781233847000,-1063.13985873,0.00013698,3]
[424885656,1781233847000,-1063.13985874,0.00013698,3]
[424885658,1781233847000,-728.27,0.00013698,2]
[424885648,1781233847000,-150.0,0.00013685,2]
[424885641,1781233847000,-150.0,0.00013645,2]
[424885644,1781233847000,-150.0,0.00013654,2]
[424885692,1781233847000,-1056.08,0.00013698,2]
[424885686,1781233847000,-761.22,0.00013698,2]
[424885694,1781233847000,-1056.08,0.00013698,2]
[424885714,1781233847000,-500.0,0.00013698,2]
[424885709,1781233847000,-500.0,0.00013698,2]
[424885711,1781233847000,-500.0,0.00013698,2]
[424885716,1781233847000,-500.0,0.00013698,2]
[424885719,1781233847000,-57.10968305,0.00013698,2]
[424885720,1781233847000,-500.0,0.00013698,2]
[424885712,1781233847000,-130.40125754,0.00013698,2]
[424885715,1781233847000,-500.0,0.00013698,2]
[424885718,1781233847000,-442.89031695,0.00013698,2]
[424885721,1781233847000,-459.2489404,0.00013698,2]
[424885723,1781233847000,-286.05841835,0.00013698,2]
[424885724,1781233847000,-213.94158165,0.00013698,2]
[424885725,1781233847000,-192.903,0.00013698,2]
[424885693,1781233847000,-1056.08,0.00013698,2]
[424885717,1781233847000,-500.0,0.00013698,2]
[424885710,1781233847000,-500.0,0.00013698,2]
[424885722,1781233847000,-40.7510596,0.00013698,2]
[424885706,1781233847000,-254.97411398,0.00013698,2]
[424885713,1781233847000,-369.59874246,0.00013698,2]
[424885726,1781233847000,-239.77559909,0.00013698,2]
[424885691,1781233847000,-761.22,0.00013698,2]
[424885697,1781233847000,-1056.08,0.00013698,2]
[424885695,1781233847000,-1056.08,0.00013698,2]
[424885698,1781233847000,-1056.08,0.00013698,2]
[424885702,1781233847000,-343.85747946,0.00013698,2]
[424885696,1781233847000,-1056.08,0.00013698,2]
[424885703,1781233847000,-500.0,0.00013698,2]
[424885705,1781233847000,-500.0,0.00013698,2]
[424885700,1781233847000,-1056.08,0.00013698,2]
[424885699,1781233847000,-1056.08,0.00013698,2]
[424885704,1781233847000,-500.0,0.00013698,2]
[424885707,1781233847000,-500.0,0.00013698,2]
[424885701,1781233847000,-712.22252054,0.00013698,2]
[424885708,1781233847000,-500.0,0.00013698,2]
[424885739,1781233848000,-500.0,0.00013698,2]
[424885743,1781233848000,-500.0,0.00013698,2]
[424885736,1781233848000,-1887.45,0.00013698,2]
[424885744,1781233848000,-500.0,0.00013698,2]
[424885746,1781233848000,-500.0,0.00013698,2]
[424885754,1781233848000,-500.0,0.00013698,2]
[424885756,1781233848000,-500.0,0.00013698,2]
[424885751,1781233848000,-500.0,0.00013698,2]
[424885742,1781233848000,-500.0,0.00013698,2]
[424885749,1781233848000,-500.0,0.00013698,2]
[424885747,1781233848000,-500.0,0.00013698,2]
[424885737,1781233848000,-1887.45,0.00013698,2]
[424885729,1781233848000,-1887.45,0.00013698,2]
[424885741,1781233848000,-500.0,0.00013698,2]
[424885740,1781233848000,-500.0,0.00013698,2]
[424885735,1781233848000,-1887.45,0.00013698,2]
[424885733,1781233848000,-1887.45,0.00013698,2]
[424885732,1781233848000,-1887.45,0.00013698,2]
[424885730,1781233848000,-1887.45,0.00013698,2]
[424885734,1781233848000,-1887.45,0.00013698,2]
[424885727,1781233848000,-184.27200346,0.00013698,2]
[424885731,1781233848000,-1887.45,0.00013698,2]
[424885728,1781233848000,-1647.67440091,0.00013698,2]
[424885755,1781233848000,-500.0,0.00013698,2]
[424885738,1781233848000,-500.0,0.00013698,2]
[424885753,1781233848000,-500.0,0.00013698,2]
[424885745,1781233848000,-500.0,0.00013698,2]
[424885750,1781233848000,-500.0,0.00013698,2]
[424885748,1781233848000,-500.0,0.00013698,2]
[424885781,1781233848000,-500.0,0.00013698,2]
[424885772,1781233848000,-500.0,0.00013698,2]
[424885771,1781233848000,-500.0,0.00013698,2]
[424885773,1781233848000,-500.0,0.00013698,2]
[424885770,1781233848000,-500.0,0.00013698,2]
[424885780,1781233848000,-500.0,0.00013698,2]
[424885775,1781233848000,-500.0,0.00013698,2]
[424885778,1781233848000,-500.0,0.00013698,2]
[424885776,1781233848000,-500.0,0.00013698,2]
[424885779,1781233848000,-500.0,0.00013698,2]
[424885777,1781233848000,-500.0,0.00013698,2]
[424885768,1781233848000,-500.0,0.00013698,2]
[424885774,1781233848000,-500.0,0.00013698,2]
[424885765,1781233848000,-500.0,0.00013698,2]
[424885769,1781233848000,-500.0,0.00013698,2]
[424885752,1781233848000,-500.0,0.00013698,2]
[424885758,1781233848000,-500.0,0.00013698,2]
[424885759,1781233848000,-500.0,0.00013698,2]
[424885760,1781233848000,-500.0,0.00013698,2]
[424885763,1781233848000,-500.0,0.00013698,2]
[424885757,1781233848000,-500.0,0.00013698,2]
[424885762,1781233848000,-500.0,0.00013698,2]
[424885766,1781233848000,-500.0,0.00013698,2]
[424885764,1781233848000,-500.0,0.00013698,2]
[424885767,1781233848000,-500.0,0.00013698,2]
[424885761,1781233848000,-500.0,0.00013698,2]
[424885810,1781233849000,-500.0,0.00013698,2]
[424885821,1781233849000,-500.0,0.00013698,2]
[424885808,1781233849000,-500.0,0.00013698,2]
[424885812,1781233849000,-172.1676913,0.00013698,2]
[424885819,1781233849000,-500.0,0.00013698,2]
[424885814,1781233849000,-500.0,0.00013698,2]
[424885818,1781233849000,-505.99849736,0.00013698,2]
[424885820,1781233849000,-500.0,0.00013698,2]
[424885823,1781233849000,-500.0,0.00013698,2]
[424885813,1781233849000,-500.0,0.00013698,2]
[424885811,1781233849000,-500.0,0.00013698,2]
[424885825,1781233849000,-500.0,0.00013698,2]
[424885815,1781233849000,-500.0,0.00013698,2]
[424885816,1781233849000,-500.0,0.00013698,2]
[424885824,1781233849000,-500.0,0.00013698,2]
[424885817,1781233849000,-500.0,0.00013698,2]
[424885830,1781233849000,-446.0,0.00013698,2]
[424885833,1781233849000,-446.0,0.00013698,2]
[424885828,1781233849000,-500.0,0.00013698,2]
[424885832,1781233849000,-455.0,0.00013698,2]
[424885831,1781233849000,-448.0,0.00013698,2]
[424885805,1781233849000,-500.0,0.00013698,2]
[424885827,1781233849000,-500.0,0.00013698,2]
[424885822,1781233849000,-500.0,0.00013698,2]
[424885804,1781233849000,-500.0,0.00013698,2]
[424885792,1781233849000,-500.0,0.00013698,2]
[424885809,1781233849000,-500.0,0.00013698,2]
[424885829,1781233849000,-500.0,0.00013698,2]
[424885782,1781233849000,-500.0,0.00013698,2]
[424885788,1781233849000,-457.12873569,0.00013698,2]
[424885784,1781233849000,-500.0,0.00013698,2]
[424885785,1781233849000,-500.0,0.00013698,2]
[424885783,1781233849000,-350.9778081,0.00013698,2]
[424885786,1781233849000,-500.0,0.00013698,2]
[424885787,1781233849000,-500.0,0.00013698,2]
[424885789,1781233849000,-500.0,0.00013698,2]
[424885790,1781233849000,-500.0,0.00013698,2]
[424885791,1781233849000,-500.0,0.00013698,2]
[424885793,1781233849000,-500.0,0.00013698,2]
[424885800,1781233849000,-500.0,0.00013698,2]
[424885795,1781233849000,-500.0,0.00013698,2]
[424885802,1781233849000,-500.0,0.00013698,2]
[424885801,1781233849000,-500.0,0.00013698,2]
[424885796,1781233849000,-500.0,0.00013698,2]
[424885794,1781233849000,-500.0,0.00013698,2]
[424885797,1781233849000,-500.0,0.00013698,2]
[424885799,1781233849000,-1063.13985874,0.00013698,3]
[424885798,1781233849000,-500.0,0.00013698,2]
[424885803,1781233849000,-500.0,0.00013698,2]
[424885806,1781233849000,-500.0,0.00013698,2]
[424885807,1781233849000,-500.0,0.00013698,2]
[424885826,1781233849000,-500.0,0.00013698,2]
[424885854,1781233849000,-195.55,0.00013699,2]
[424885835,1781233849000,-450.0,0.00013698,2]
[424885862,1781233849000,-559.27733287,0.00013699,2]
[424885861,1781233849000,-559.27733287,0.00013699,2]
[424885863,1781233849000,-559.27733287,0.00013699,2]
[424885867,1781233849000,-559.27733287,0.00013699,2]
[424885871,1781233849000,-559.27733287,0.00013699,2]
[424885868,1781233849000,-559.27733287,0.00013699,2]
[424885869,1781233849000,-559.27733287,0.00013699,2]
[424885870,1781233849000,-559.27733287,0.00013699,2]
[424885874,1781233849000,-559.27733287,0.00013699,2]
[424885876,1781233849000,-559.27733287,0.00013699,2]
[424885873,1781233849000,-559.27733287,0.00013699,2]
[424885859,1781233849000,-559.27733287,0.00013699,2]
[424885872,1781233849000,-559.27733287,0.00013699,2]
[424885885,1781233849000,-559.27733287,0.00013699,2]
[424885886,1781233849000,-559.27733287,0.00013699,2]
[424885887,1781233849000,-559.27733287,0.00013699,2]
[424885878,1781233849000,-559.27733287,0.00013699,2]
[424885879,1781233849000,-559.27733287,0.00013699,2]
[424885884,1781233849000,-559.27733287,0.00013699,2]
[424885882,1781233849000,-559.27733287,0.00013699,2]
[424885881,1781233849000,-559.27733287,0.00013699,2]
[424885883,1781233849000,-559.27733287,0.00013699,2]
[424885880,1781233849000,-559.27733287,0.00013699,2]
[424885836,1781233849000,-445.0,0.00013698,2]
[424885875,1781233849000,-559.27733287,0.00013699,2]
[424885866,1781233849000,-559.27733287,0.00013699,2]
[424885877,1781233849000,-559.27733287,0.00013699,2]
[424885864,1781233849000,-559.27733287,0.00013699,2]
[424885860,1781233849000,-559.27733287,0.00013699,2]
[424885837,1781233849000,-455.0,0.00013698,2]
[424885845,1781233849000,-448.0,0.00013698,2]
[424885843,1781233849000,-455.0,0.00013698,2]
[424885842,1781233849000,-452.0,0.00013698,2]
[424885840,1781233849000,-455.0,0.00013698,2]
[424885839,1781233849000,-444.0,0.00013698,2]
[424885844,1781233849000,-458.0,0.00013698,2]
[424885841,1781233849000,-453.0,0.00013698,2]
[424885838,1781233849000,-453.0,0.00013698,2]
[424885847,1781233849000,-500.0,0.00013698,2]
[424885848,1781233849000,-2000.0,0.00013699,2]
[424885834,1781233849000,-453.0,0.00013698,2]
[424885853,1781233849000,-234.66,0.00013699,2]
[424885846,1781233849000,-364.0,0.00013698,2]
[424885865,1781233849000,-559.27733287,0.00013699,2]
[424885856,1781233849000,-814.83,0.00013699,2]
[424885857,1781233849000,-2500000.0,0.00013699,2]
[424885855,1781233849000,-162.96,0.00013699,2]
[424885858,1781233849000,-559.27733287,0.00013699,2]
[424885851,1781233849000,-337.92,0.00013699,2]
[424885849,1781233849000,-2500.0,0.00013699,2]
[424885850,1781233849000,-200.0,0.00013699,2]
[424885852,1781233849000,-281.6,0.00013699,2]
[424885918,1781233850000,-1572.9674987,0.00013699,2]
[424885929,1781233850000,-150.0,0.00013737,2]
[424885919,1781233850000,-1572.9674987,0.00013699,2]
[424885917,1781233850000,-1572.9674987,0.00013699,2]
[424885924,1781233850000,-1572.9674987,0.00013699,2]
[424885925,1781233850000,-1500.0,0.000137,5]
[424885922,1781233850000,-1572.9674987,0.00013699,2]
[424885926,1781233850000,-400.0,0.000137,5]
[424885920,1781233850000,-1572.9674987,0.00013699,2]
[424885923,1781233850000,-1572.9674987,0.00013699,2]
[424885928,1781233850000,-150.0,0.00013724,2]
[424885927,1781233850000,-449.29,0.000137,2]
[424885936,1781233850000,-1056.08,0.00013798,2]
[424885932,1781233850000,-7816.39728556,0.00013786,2]
[424885930,1781233850000,-10476.53150571,0.00013744,2]
[424885943,1781233850000,-500.0,0.00013798,2]
[424885944,1781233850000,-500.0,0.00013799,2]
[424885938,1781233850000,-1887.45,0.00013798,2]
[424885937,1781233850000,-500.0,0.00013798,2]
[424885942,1781233850000,-500.0,0.00013798,2]
[424885935,1781233850000,-761.22,0.00013798,2]
[424885940,1781233850000,-500.0,0.00013798,2]
[424885939,1781233850000,-500.0,0.00013798,2]
[424885916,1781233850000,-1572.9674987,0.00013699,2]
[424885931,1781233850000,-150.0,0.00013764,2]
[424885915,1781233850000,-1572.9674987,0.00013699,2]
[424885889,1781233850000,-559.27733287,0.00013699,2]
[424885913,1781233850000,-1572.9674987,0.00013699,2]
[424885941,1781233850000,-500.0,0.00013798,2]
[424885890,1781233850000,-559.27733287,0.00013699,2]
[424885888,1781233850000,-559.27733287,0.00013699,2]
[424885896,1781233850000,-559.27733287,0.00013699,2]
[424885891,1781233850000,-559.27733287,0.00013699,2]
[424885895,1781233850000,-559.27733287,0.00013699,2]
[424885892,1781233850000,-559.27733287,0.00013699,2]
[424885897,1781233850000,-559.27733287,0.00013699,2]
[424885893,1781233850000,-559.27733287,0.00013699,2]
[424885894,1781233850000,-559.27733287,0.00013699,2]
[424885898,1781233850000,-559.27733287,0.00013699,2]
[424885900,1781233850000,-559.27733287,0.00013699,2]
[424885899,1781233850000,-559.27733287,0.00013699,2]
[424885906,1781233850000,-559.27733287,0.00013699,2]
[424885908,1781233850000,-559.27733287,0.00013699,2]
[424885902,1781233850000,-559.27733287,0.00013699,2]
[424885904,1781233850000,-559.27733287,0.00013699,2]
[424885901,1781233850000,-559.27733287,0.00013699,2]
[424885907,1781233850000,-559.27733287,0.00013699,2]
[424885903,1781233850000,-559.27733287,0.00013699,2]
[424885905,1781233850000,-559.27733287,0.00013699,2]
[424885909,1781233850000,-559.27733287,0.00013699,2]
[424885910,1781233850000,-559.27733287,0.00013699,2]
[424885921,1781233850000,-1572.9674987,0.00013699,2]
[424885911,1781233850000,-559.27733287,0.00013699,2]
[424885914,1781233850000,-1572.9674987,0.00013699,2]
[424885934,1781233850000,-728.27,0.00013798,2]
[424885912,1781233850000,-559.27733287,0.00013699,2]
[424885947,1781233850000,-500.0,0.00013799,2]
[424885975,1781233850000,-500.0,0.00013799,2]
[424885974,1781233850000,-500.0,0.00013799,2]
[424885976,1781233850000,-500.0,0.00013799,2]
[424885977,1781233850000,-500.0,0.00013799,2]
[424885981,1781233850000,-500.0,0.00013799,2]
[424885982,1781233850000,-500.0,0.00013799,2]
[424885978,1781233850000,-500.0,0.00013799,2]
[424885985,1781233850000,-2200.0,0.000138,5]
[424885979,1781233850000,-500.0,0.00013799,2]
[424885980,1781233850000,-500.0,0.00013799,2]
[424885984,1781233850000,-504.12918615,0.00013799,2]
[424885983,1781233850000,-500.0,0.00013799,2]
[424885987,1781233850000,-150.0,0.00013803,2]
[424885986,1781233850000,-600.0,0.000138,5]
[424885988,1781233850000,-446.98332086,0.00013816,2]
[424885990,1781233850000,-150.0,0.00013821,2]
[424885989,1781233850000,-150.0,0.00013821,2]
[424885991,1781233850000,-551.31,0.00013835,2]
[424885994,1781233850000,-150.0,0.00013882,2]
[424885992,1781233850000,-150.0,0.00013843,2]
[424885997,1781233850000,-644.0,0.000139,2]
[424885999,1781233850000,-644.0,0.000139,2]
[424885993,1781233850000,-150.0,0.00013862,2]
[424885996,1781233850000,-644.0,0.000139,2]
[424885933,1781233850000,-150.0,0.00013787,2]
[424885973,1781233850000,-500.0,0.00013799,2]
[424885971,1781233850000,-500.0,0.00013799,2]
[424885995,1781233850000,-10476.53150571,0.00013889,2]
[424885972,1781233850000,-500.0,0.00013799,2]
[424885948,1781233850000,-500.0,0.00013799,2]
[424885949,1781233850000,-500.0,0.00013799,2]
[424885945,1781233850000,-500.0,0.00013799,2]
[424885954,1781233850000,-500.0,0.00013799,2]
[424885953,1781233850000,-500.0,0.00013799,2]
[424885946,1781233850000,-500.0,0.00013799,2]
[424885950,1781233850000,-500.0,0.00013799,2]
[424885998,1781233850000,-644.0,0.000139,2]
[424885952,1781233850000,-500.0,0.00013799,2]
[424885955,1781233850000,-500.0,0.00013799,2]
[424885957,1781233850000,-500.0,0.00013799,2]
[424885958,1781233850000,-500.0,0.00013799,2]
[424885951,1781233850000,-500.0,0.00013799,2]
[424885961,1781233850000,-500.0,0.00013799,2]
[424885969,1781233850000,-500.0,0.00013799,2]
[424885956,1781233850000,-500.0,0.00013799,2]
[424885970,1781233850000,-500.0,0.00013799,2]
[424885968,1781233850000,-500.0,0.00013799,2]
[424885966,1781233850000,-500.0,0.00013799,2]
[424885967,1781233850000,-500.0,0.00013799,2]
[424885965,1781233850000,-500.0,0.00013799,2]
[424885962,1781233850000,-500.0,0.00013799,2]
[424885964,1781233850000,-500.0,0.00013799,2]
[424885963,1781233850000,-500.0,0.00013799,2]
[424885960,1781233850000,-500.0,0.00013799,2]
[424885959,1781233850000,-500.0,0.00013799,2]
[424886035,1781233851000,-250.0,0.00014,2]
[424886042,1781233851000,-10476.53150571,0.00014033,2]
[424886040,1781233851000,-500.0,0.00014021,2]
[424886038,1781233851000,-500.0,0.00014021,2]
[424886033,1781233851000,-150.0,0.00013987,2]
[424886031,1781233851000,-150.0,0.00013987,2]
[424886025,1781233851000,-150.0,0.00013961,2]
[424886034,1781233851000,-764.1600855,0.0001399,2]
[424886032,1781233851000,-150.0,0.00013987,2]
[424886026,1781233851000,-7816.39728556,0.00013971,2]
[424886043,1781233851000,-303.54,0.00014034,2]
[424886055,1781233851000,-190.36690243,0.00014157,10]
[424886036,1781233851000,-150.0,0.00014,2]
[424886044,1781233851000,-182.903879,0.00014036,2]
[424886037,1781233851000,-500.0,0.00014021,2]
[424886041,1781233851000,-446.98332086,0.00014033,2]
[424886045,1781233851000,-181.351313,0.00014036,2]
[424886049,1781233851000,-150.0,0.00014087,2]
[424886046,1781233851000,-171.078177,0.00014036,2]
[424886054,1781233851000,-150.0,0.00014154,2]
[424886051,1781233851000,-150.0,0.00014119,2]
[424886052,1781233851000,-2000.0,0.00014146,2]
[424886030,1781233851000,-150.0,0.00013987,2]
[424886039,1781233851000,-500.0,0.00014021,2]
[424886023,1781233851000,-150.0,0.00013937,2]
[424886015,1781233851000,-644.0,0.000139,2]
[424886029,1781233851000,-393.41,0.00013986,2]
[424886050,1781233851000,-150.0,0.00014112,2]
[424886000,1781233851000,-644.0,0.000139,2]
[424886007,1781233851000,-644.0,0.000139,2]
[424886010,1781233851000,-644.0,0.000139,2]
[424886008,1781233851000,-644.0,0.000139,2]
[424886009,1781233851000,-644.0,0.000139,2]
[424886002,1781233851000,-644.0,0.000139,2]
[424886001,1781233851000,-644.0,0.000139,2]
[424886003,1781233851000,-644.0,0.000139,2]
[424886006,1781233851000,-644.0,0.000139,2]
[424886005,1781233851000,-644.0,0.000139,2]
[424886027,1781233851000,-507.02091319,0.00013972,2]
[424886011,1781233851000,-644.0,0.000139,2]
[424886013,1781233851000,-644.0,0.000139,2]
[424886012,1781233851000,-644.0,0.000139,2]
[424886022,1781233851000,-150.0,0.00013921,2]
[424886018,1781233851000,-644.0,0.000139,2]
[424886017,1781233851000,-644.0,0.000139,2]
[424886019,1781233851000,-644.71450986,0.000139,2]
[424886016,1781233851000,-644.0,0.000139,2]
[424886021,1781233851000,-800.0,0.000139,5]
[424886020,1781233851000,-3000.0,0.000139,5]
[424886024,1781233851000,-166.55,0.00013959,2]
[424886028,1781233851000,-2000.0,0.00013986,2]
[424886014,1781233851000,-644.0,0.000139,2]
[424886056,1781233851000,-7816.39728556,0.00014157,2]
[424886004,1781233851000,-644.0,0.000139,2]
[424886047,1781233851000,-150.0,0.0001404,2]
[424886086,1781233851000,-150.0,0.0001432,2]
[424886080,1781233851000,-842.38,0.0001428,2]
[424886077,1781233851000,-303.54,0.00014274,2]
[424886084,1781233851000,-195.550356,0.00014319,2]
[424886089,1781233851000,-500.0,0.00014342,2]
[424886088,1781233851000,-500.0,0.00014342,2]
[424886091,1781233851000,-150.0,0.00014362,2]
[424886098,1781233851000,-924.64983228,0.00014458,2]
[424886090,1781233851000,-150.0,0.00014355,2]
[424886097,1781233851000,-303.54,0.0001445,2]
[424886095,1781233851000,-300.0,0.00014407,2]
[424886083,1781233851000,-177.775178,0.00014319,2]
[424886092,1781233851000,-303.54,0.00014374,2]
[424886093,1781233851000,-150.0,0.00014387,2]
[424886096,1781233851000,-150.0,0.00014434,2]
[424886094,1781233851000,-150.0,0.00014395,2]
[424886101,1781233851000,-150.0,0.00014474,2]
[424886103,1781233851000,-150.0,0.00014487,2]
[424886100,1781233851000,-10476.53150571,0.00014467,2]
[424886053,1781233851000,-150.0,0.00014154,2]
[424886104,1781233851000,-150.0,0.00014487,2]
[424886105,1781233851000,-150.0,0.00014487,2]
[424886107,1781233851000,-150.0,0.00014513,2]
[424886106,1781233851000,-300.0,0.00014496,2]